[Event "Schack-SM 2024: Sverigemastarklassen"]
[Site "Fortnox Arena, Hejaregatan 5, Vaxjo, Sweden"]
[Date "2024.07.06"]
[Round "8.5"]
[White "Hector, Jonny"]
[Black "Seo, Jung Min"]
[Result "1/2-1/2"]
[TimeControl "90 minutes for 40 moves + 30 minutes for the rest of the game + 30 seconds per move from move one."]
[WhiteTitle "GM"]
[BlackTitle "IM"]
[WhiteElo "2410"]
[BlackElo "2442"]

1. e4 {[%clk 01:30:53]} {[%emt 00:00:05]} c5 {[%clk 01:30:58]} {[%emt
00:00:04]} 2. Nf3 {[%clk 01:31:13]} {[%emt 00:00:09]} d6 {[%clk 01:31:27]}
{[%emt 00:00:03]} 3. d4 {[%clk 01:31:32]} {[%emt 00:00:10]} cxd4 {[%clk
01:31:52]} {[%emt 00:00:05]} 4. Nxd4 {[%clk 01:31:54]} {[%emt 00:00:08]} Nf6
{[%clk 01:32:21]} {[%emt 00:00:02]} 5. Nc3 {[%clk 01:32:10]} {[%emt 00:00:13]}
a6 {[%clk 01:32:50]} {[%emt 00:00:03]} 6. Bg5 {[%clk 01:31:54]} {[%emt
00:00:42]} Nbd7 {[%clk 01:33:01]} {[%emt 00:00:20]} 7. Qe2 {[%clk 01:31:07]}
{[%emt 00:01:16]} h6 {[%clk 01:31:00]} {[%emt 00:02:32]} 8. Bh4 {[%clk
01:30:22]} {[%emt 00:01:15]} g6 {[%clk 01:30:22]} {[%emt 00:01:09]} 9. f4
{[%clk 01:29:45]} {[%emt 00:01:06]} e5 {[%clk 01:30:27]} {[%emt 00:00:27]} 10.
fxe5 {[%clk 01:29:04]} {[%emt 00:01:09]} dxe5 {[%clk 01:30:23]} {[%emt
00:00:36]} 11. O-O-O {[%clk 01:28:46]} {[%emt 00:00:46]} Qc7 {[%clk 01:30:38]}
{[%emt 00:00:16]} 12. Nb3 {[%clk 01:26:29]} {[%emt 00:02:46]} b5 {[%clk
01:30:28]} {[%emt 00:00:41]} 13. Rxd7 {[%clk 01:21:34]} {[%emt 00:05:24]} Nxd7
{[%clk 01:30:53]} {[%emt 00:00:07]} 14. Nd5 {[%clk 01:20:54]} {[%emt 00:01:09]}
Qb8 {[%clk 01:27:24]} {[%emt 00:03:58]} 15. Na5 {[%clk 01:16:16]} {[%emt
00:05:10]} Bg7 {[%clk 01:15:10]} {[%emt 00:12:44]} 16. Qf3 {[%clk 01:08:59]}
{[%emt 00:07:45]} O-O {[%clk 01:15:19]} {[%emt 00:00:23]} 17. Be7 {[%clk
01:06:27]} {[%emt 00:03:01]} Bb7 {[%clk 00:52:04]} {[%emt 00:23:46]} 18. Bxf8
{[%clk 01:02:19]} {[%emt 00:04:37]} Kxf8 {[%clk 00:34:57]} {[%emt 00:17:38]} 19.
Qa3+ {[%clk 00:47:33]} {[%emt 00:15:15]} Kg8 {[%clk 00:35:11]} {[%emt
00:00:17]} 20. Nxb7 {[%clk 00:47:47]} {[%emt 00:00:15]} Qxb7 {[%clk 00:35:40]}
{[%emt 00:00:02]} 21. Qd6 {[%clk 00:40:47]} {[%emt 00:07:29]} Nf8 {[%clk
00:33:30]} {[%emt 00:02:41]} 22. Bd3 {[%clk 00:38:22]} {[%emt 00:02:55]} Ne6
{[%clk 00:30:29]} {[%emt 00:03:30]} 23. Rf1 {[%clk 00:37:52]} {[%emt 00:01:00]}
Nf4 {[%clk 00:26:03]} {[%emt 00:04:56]} 24. Nxf4 {[%clk 00:31:02]} {[%emt
00:07:18]} exf4 {[%clk 00:26:07]} {[%emt 00:00:29]} 25. Rxf4 {[%clk 00:29:19]}
{[%emt 00:02:11]} Re8 {[%clk 00:22:18]} {[%emt 00:04:20]} 26. Qd5 {[%clk
00:27:13]} {[%emt 00:02:36]} Qc7 {[%clk 00:18:13]} {[%emt 00:04:34]} 27. g3
{[%clk 00:23:58]} {[%emt 00:03:45]} Be5 {[%clk 00:17:15]} {[%emt 00:01:27]} 28.
Rf1 {[%clk 00:23:28]} {[%emt 00:01:00]} Kg7 {[%clk 00:17:06]} {[%emt 00:00:41]}
29. Kb1 {[%clk 00:20:06]} {[%emt 00:03:51]} Re7 {[%clk 00:17:14]} {[%emt
00:00:22]} 30. a3 {[%clk 00:14:16]} {[%emt 00:06:21]} Rd7 {[%clk 00:13:12]}
{[%emt 00:04:30]} 31. Qb3 {[%clk 00:14:23]} {[%emt 00:00:23]} Qc5 {[%clk
00:12:35]} {[%emt 00:01:06]} 32. Ka2 {[%clk 00:12:34]} {[%emt 00:02:21]} h5
{[%clk 00:09:02]} {[%emt 00:04:04]} 33. Qb4 {[%clk 00:07:45]} {[%emt 00:05:18]}
Qc7 {[%clk 00:08:49]} {[%emt 00:00:42]} 34. Rf3 {[%clk 00:04:35]} {[%emt
00:03:41]} Rd4 {[%clk 00:08:15]} {[%emt 00:01:03]} 35. Qb3 {[%clk 00:04:55]}
{[%emt 00:00:11]} Qd7 {[%clk 00:03:13]} {[%emt 00:05:32]} 36. c4 {[%clk
00:03:37]} {[%emt 00:01:49]} Qg4 {[%clk 00:02:39]} {[%emt 00:01:03]} 37. Rf2
{[%clk 00:03:44]} {[%emt 00:00:23]} Qe6 {[%clk 00:01:05]} {[%emt 00:02:06]} 38.
Rc2 {[%clk 00:03:38]} {[%emt 00:00:34]} a5 {[%clk 00:00:38]} {[%emt 00:01:00]}
39. Bf1 {[%clk 00:03:35]} {[%emt 00:00:31]} bxc4 {[%clk 00:00:36]} {[%emt
00:00:33]} 40. Bxc4 {[%clk 00:03:31]} {[%emt 00:00:33]} Qf6 {[%clk 00:00:33]}
{[%emt 00:00:34]} 41. Bd5 {[%clk 00:23:26]} {[%emt 00:10:34]} Qf1 {[%clk
00:25:55]} {[%emt 00:05:07]} 42. Qe3 {[%clk 00:22:17]} {[%emt 00:01:39]} Rd1
{[%clk 00:24:04]} {[%emt 00:02:22]} 43. Qe2 {[%clk 00:19:43]} {[%emt 00:03:04]}
Ra1+ {[%clk 00:24:22]} {[%emt 00:00:13]} 44. Kb3 {[%clk 00:20:11]} {[%emt
00:00:01]} Qf6 {[%clk 00:20:35]} {[%emt 00:04:16]} 45. Ka4 {[%clk 00:16:07]}
{[%emt 00:04:35]} Rb1 {[%clk 00:10:16]} {[%emt 00:10:48]} 46. Kb3 {[%clk
00:13:53]} {[%emt 00:02:45]} Rf1 {[%clk 00:07:08]} {[%emt 00:03:36]} 47. Ka2
{[%clk 00:13:54]} {[%emt 00:00:30]} Bd4 {[%clk 00:04:14]} {[%emt 00:03:25]} 48.
Qb5 {[%clk 00:09:28]} {[%emt 00:04:55]} Rf2 {[%clk 00:03:55]} {[%emt 00:00:49]}
49. Qb3 {[%clk 00:07:36]} {[%emt 00:02:21]} Rxc2 {[%clk 00:00:34]} {[%emt
00:03:53]} 50. Qxc2 {[%clk 00:08:02]} {[%emt 00:00:03]} h4 {[%clk 00:00:38]}
{[%emt 00:00:28]} 51. gxh4 {[%clk 00:07:35]} {[%emt 00:00:56]} Qxh4 {[%clk
00:00:46]} {[%emt 00:00:22]} 52. Kb3 {[%clk 00:05:32]} {[%emt 00:02:33]} Qf6
{[%clk 00:00:54]} {[%emt 00:00:22]} 53. Qg2 {[%clk 00:04:48]} {[%emt 00:01:13]}
Be5 {[%clk 00:01:12]} {[%emt 00:00:14]} 54. h3 {[%clk 00:05:05]} {[%emt
00:00:13]} Bd4 {[%clk 00:01:23]} {[%emt 00:00:19]} 55. Qd2 {[%clk 00:04:05]}
{[%emt 00:01:30]} Qb6+ {[%clk 00:01:27]} {[%emt 00:00:26]} 56. Ka2 {[%clk
00:04:25]} {[%emt 00:00:09]} Bf6 {[%clk 00:01:46]} {[%emt 00:00:10]} 57. Bb3
{[%clk 00:03:54]} {[%emt 00:01:02]} Qd4 {[%clk 00:02:01]} {[%emt 00:00:13]} 58.
Qxd4 {[%clk 00:03:56]} {[%emt 00:00:30]} Bxd4 {[%clk 00:02:28]} {[%emt
00:00:04]} 59. Bd5 {[%clk 00:03:33]} {[%emt 00:00:52]} f5 {[%clk 00:02:49]}
{[%emt 00:00:10]} 60. exf5 {[%clk 00:03:40]} {[%emt 00:00:23]} gxf5 {[%clk
00:03:17]} {[%emt 00:00:01]} 61. b4 {[%clk 00:03:34]} {[%emt 00:00:37]} axb4
{[%clk 00:03:43]} {[%emt 00:00:04]} 62. axb4 {[%clk 00:03:55]} {[%emt
00:00:08]} f4 {[%clk 00:04:11]} {[%emt 00:00:02]} 1/2-1/2

[Event "Schack-SM 2024: Sverigemastarklassen"]
[Site "Fortnox Arena, Hejaregatan 5, Vaxjo, Sweden"]
[Date "2024.07.06"]
[Round "8.1"]
[White "Galperin, Platon"]
[Black "Pantzar, Milton"]
[Result "1-0"]
[TimeControl "90 minutes for 40 moves + 30 minutes for the rest of the game + 30 seconds per move from move one."]
[WhiteTitle "GM"]
[BlackTitle "IM"]
[WhiteElo "2551"]
[BlackElo "2480"]

1. e4 {[%clk 01:25:42]} {[%emt 00:00:30]} e5 {[%clk 01:30:51]} {[%emt
00:00:09]} 2. Nf3 {[%clk 01:26:09]} {[%emt 00:00:05]} Nf6 {[%clk 01:31:13]}
{[%emt 00:00:07]} 3. Nxe5 {[%clk 01:25:26]} {[%emt 00:01:14]} Nxe4 {[%clk
01:31:28]} {[%emt 00:00:14]} 4. Qe2 {[%clk 01:25:36]} {[%emt 00:00:20]} Qe7
{[%clk 01:31:51]} {[%emt 00:00:08]} 5. Qxe4 {[%clk 01:26:03]} {[%emt 00:00:04]}
d6 {[%clk 01:32:14]} {[%emt 00:00:06]} 6. d4 {[%clk 01:26:30]} {[%emt
00:00:03]} dxe5 {[%clk 01:32:38]} {[%emt 00:00:06]} 7. dxe5 {[%clk 01:26:56]}
{[%emt 00:00:04]} Nc6 {[%clk 01:33:01]} {[%emt 00:00:08]} 8. Nc3 {[%clk
01:27:23]} {[%emt 00:00:02]} Qxe5 {[%clk 01:33:17]} {[%emt 00:00:15]} 9. Qxe5+
{[%clk 01:27:27]} {[%emt 00:00:25]} Nxe5 {[%clk 01:33:40]} {[%emt 00:00:08]} 10.
Nb5 {[%clk 01:27:48]} {[%emt 00:00:09]} Bb4+ {[%clk 01:33:38]} {[%emt
00:00:32]} 11. Bd2 {[%clk 01:28:01]} {[%emt 00:00:17]} Bxd2+ {[%clk 01:33:50]}
{[%emt 00:00:18]} 12. Kxd2 {[%clk 01:28:27]} {[%emt 00:00:04]} Kd8 {[%clk
01:34:02]} {[%emt 00:00:18]} 13. Re1 {[%clk 01:28:27]} {[%emt 00:00:29]} Nd7
{[%clk 01:26:01]} {[%emt 00:08:32]} 14. a4 {[%clk 01:25:56]} {[%emt 00:03:01]}
Nc5 {[%clk 01:11:11]} {[%emt 00:15:19]} 15. a5 {[%clk 01:24:56]} {[%emt
00:01:30]} Bd7 {[%clk 01:01:05]} {[%emt 00:10:35]} 16. Nd4 {[%clk 01:21:47]}
{[%emt 00:03:39]} Ne6 {[%clk 00:57:30]} {[%emt 00:04:06]} 17. Nf3 {[%clk
01:19:13]} {[%emt 00:03:03]} Ke7 {[%clk 00:53:07]} {[%emt 00:04:53]} 18. Bc4
{[%clk 01:19:13]} {[%emt 00:00:29]} Rad8 {[%clk 00:47:13]} {[%emt 00:06:25]} 19.
Kc3 {[%clk 01:19:37]} {[%emt 00:00:06]} Rhe8 {[%clk 00:42:38]} {[%emt
00:05:05]} 20. Ne5 {[%clk 01:13:08]} {[%emt 00:06:58]} Bc8 {[%clk 00:41:15]}
{[%emt 00:01:54]} 21. a6 {[%clk 01:13:25]} {[%emt 00:00:12]} Rd6 {[%clk
00:39:04]} {[%emt 00:02:42]} 22. axb7 {[%clk 01:13:31]} {[%emt 00:00:24]} Bxb7
{[%clk 00:39:26]} {[%emt 00:00:08]} 23. f3 {[%clk 01:13:47]} {[%emt 00:00:13]}
h5 {[%clk 00:34:01]} {[%emt 00:05:55]} 24. Ra1 {[%clk 01:03:41]} {[%emt
00:10:36]} a6 {[%clk 00:32:43]} {[%emt 00:01:49]} 25. Rhe1 {[%clk 01:03:28]}
{[%emt 00:00:42]} Kf6 {[%clk 00:29:03]} {[%emt 00:04:11]} 26. Ra5 {[%clk
00:56:41]} {[%emt 00:07:16]} Re7 {[%clk 00:25:22]} {[%emt 00:04:12]} 27. Nd3
{[%clk 00:55:56]} {[%emt 00:01:14]} h4 {[%clk 00:16:38]} {[%emt 00:09:14]} 28.
Rh5 {[%clk 00:42:06]} {[%emt 00:14:19]} g5 {[%clk 00:15:41]} {[%emt 00:01:28]}
29. Ne5 {[%clk 00:41:11]} {[%emt 00:01:24]} Bd5 {[%clk 00:12:37]} {[%emt
00:03:35]} 30. Bd3 {[%clk 00:39:35]} {[%emt 00:02:05]} Kg7 {[%clk 00:07:19]}
{[%emt 00:05:48]} 31. Ng4 {[%clk 00:37:14]} {[%emt 00:02:51]} Red7 {[%clk
00:06:33]} {[%emt 00:01:17]} 32. b3 {[%clk 00:20:37]} {[%emt 00:17:06]} c5
{[%clk 00:03:56]} {[%emt 00:03:07]} 33. Re5 {[%clk 00:19:17]} {[%emt 00:01:50]}
Rc7 {[%clk 00:02:34]} {[%emt 00:01:52]} 34. Ne3 {[%clk 00:18:26]} {[%emt
00:01:22]} Bb7 {[%clk 00:01:53]} {[%emt 00:01:12]} 35. Ng4 {[%clk 00:16:15]}
{[%emt 00:02:41]} Kf8 {[%clk 00:01:19]} {[%emt 00:01:04]} 36. Bf5 {[%clk
00:13:30]} {[%emt 00:03:13]} Bd5 {[%clk 00:00:33]} {[%emt 00:01:18]} 37. Rh8+
{[%clk 00:09:39]} {[%emt 00:04:19]} Kg7 {[%clk 00:00:50]} {[%emt 00:00:13]} 38.
Rh7+ {[%clk 00:09:57]} {[%emt 00:00:12]} Kf8 {[%clk 00:01:19]} {[%emt
00:00:01]} 39. Nf6 {[%clk 00:09:45]} {[%emt 00:00:41]} Bc6 {[%clk 00:00:56]}
{[%emt 00:00:54]} 40. Bxe6 {[%clk 00:09:01]} {[%emt 00:01:13]} Re7 {[%clk
00:01:10]} {[%emt 00:00:17]} 41. Bc4 {[%clk 00:05:29]} {[%emt 00:03:59]} Rxf6
{[%clk 00:00:56]} {[%emt 00:00:46]} 42. Rxg5 {[%clk 00:05:36]} {[%emt
00:00:23]} 1-0

[Event "Schack-SM 2024: Sverigemastarklassen"]
[Site "Fortnox Arena, Hejaregatan 5, Vaxjo, Sweden"]
[Date "2024.07.06"]
[Round "8.2"]
[White "Ostlund, Joar"]
[Black "Sivuk, Vitaly"]
[Result "1/2-1/2"]
[TimeControl "90 minutes for 40 moves + 30 minutes for the rest of the game + 30 seconds per move from move one."]
[WhiteTitle "FM"]
[BlackTitle "GM"]
[WhiteElo "2334"]
[BlackElo "2569"]

1. d4 {[%clk 01:30:14]} {[%emt 00:00:45]} Nf6 {[%clk 01:25:06]} {[%emt
00:05:54]} 2. c4 {[%clk 01:30:34]} {[%emt 00:00:12]} e6 {[%clk 01:25:25]}
{[%emt 00:00:09]} 3. Nf3 {[%clk 01:30:52]} {[%emt 00:00:11]} d5 {[%clk
01:25:42]} {[%emt 00:00:13]} 4. Nc3 {[%clk 01:30:57]} {[%emt 00:00:27]} h6
{[%clk 01:25:59]} {[%emt 00:00:11]} 5. Bf4 {[%clk 01:25:00]} {[%emt 00:06:28]}
Bb4 {[%clk 01:23:55]} {[%emt 00:02:34]} 6. Qb3 {[%clk 01:14:13]} {[%emt
00:11:18]} c5 {[%clk 01:22:54]} {[%emt 00:01:29]} 7. dxc5 {[%clk 01:09:52]}
{[%emt 00:04:52]} Nc6 {[%clk 01:22:02]} {[%emt 00:01:20]} 8. e3 {[%clk
01:00:39]} {[%emt 00:09:44]} Qa5 {[%clk 01:12:37]} {[%emt 00:09:54]} 9. Bd3
{[%clk 00:48:44]} {[%emt 00:12:27]} dxc4 {[%clk 00:47:44]} {[%emt 00:25:22]} 10.
Qxc4 {[%clk 00:47:23]} {[%emt 00:01:52]} Nd7 {[%clk 00:43:31]} {[%emt
00:04:42]} 11. O-O {[%clk 00:40:27]} {[%emt 00:07:26]} Bxc3 {[%clk 00:43:35]}
{[%emt 00:00:26]} 12. bxc3 {[%clk 00:36:48]} {[%emt 00:04:09]} e5 {[%clk
00:42:20]} {[%emt 00:01:44]} 13. Nxe5 {[%clk 00:19:02]} {[%emt 00:18:17]} Ndxe5
{[%clk 00:37:45]} {[%emt 00:05:06]} 14. Bxe5 {[%clk 00:19:25]} {[%emt
00:00:07]} Nxe5 {[%clk 00:37:46]} {[%emt 00:00:29]} 15. Qe4 {[%clk 00:19:48]}
{[%emt 00:00:06]} Qxc5 {[%clk 00:23:26]} {[%emt 00:14:50]} 16. f4 {[%clk
00:19:12]} {[%emt 00:01:07]} Bf5 {[%clk 00:22:14]} {[%emt 00:01:40]} 17. Qxb7
{[%clk 00:13:52]} {[%emt 00:05:52]} O-O {[%clk 00:19:34]} {[%emt 00:03:10]} 18.
Bxf5 {[%clk 00:13:36]} {[%emt 00:00:46]} Nc4 {[%clk 00:19:55]} {[%emt
00:00:09]} 19. Qb4 {[%clk 00:11:32]} {[%emt 00:02:34]} Qxf5 {[%clk 00:05:48]}
{[%emt 00:14:36]} 20. Qxc4 {[%clk 00:11:56]} {[%emt 00:00:07]} Rac8 {[%clk
00:06:15]} {[%emt 00:00:03]} 21. Qd4 {[%clk 00:10:52]} {[%emt 00:01:33]} Rfd8
{[%clk 00:05:44]} {[%emt 00:01:00]} 22. Qxa7 {[%clk 00:10:19]} {[%emt
00:01:05]} Rxc3 {[%clk 00:05:55]} {[%emt 00:00:18]} 23. Rad1 {[%clk 00:09:36]}
{[%emt 00:01:13]} Re8 {[%clk 00:05:29]} {[%emt 00:00:56]} 24. Rde1 {[%clk
00:06:12]} {[%emt 00:03:54]} Qd5 {[%clk 00:02:19]} {[%emt 00:03:39]} 25. Qd4
{[%clk 00:05:31]} {[%emt 00:01:12]} Qa5 {[%clk 00:02:08]} {[%emt 00:00:43]} 26.
f5 {[%clk 00:04:18]} {[%emt 00:01:42]} Rc2 {[%clk 00:02:01]} {[%emt 00:00:37]}
27. f6 {[%clk 00:01:53]} {[%emt 00:02:57]} Qxa2 {[%clk 00:01:53]} {[%emt
00:00:37]} 28. Qg4 {[%clk 00:01:40]} {[%emt 00:00:43]} g6 {[%clk 00:02:16]}
{[%emt 00:00:07]} 29. Kh1 {[%clk 00:00:51]} {[%emt 00:01:19]} Qd5 {[%clk
00:02:04]} {[%emt 00:00:43]} 30. e4 {[%clk 00:00:40]} {[%emt 00:00:41]} Qe5
{[%clk 00:02:07]} {[%emt 00:00:26]} 31. Qf4 {[%clk 00:00:32]} {[%emt 00:00:38]}
Kh7 {[%clk 00:01:46]} {[%emt 00:00:51]} 32. h3 {[%clk 00:00:35]} {[%emt
00:00:28]} Rc4 {[%clk 00:01:42]} {[%emt 00:00:33]} 33. Qxe5 {[%clk 00:00:33]}
{[%emt 00:00:35]} Rxe5 {[%clk 00:02:06]} {[%emt 00:00:04]} 34. Ra1 {[%clk
00:00:34]} {[%emt 00:00:29]} g5 {[%clk 00:00:59]} {[%emt 00:01:37]} 35. Ra7
{[%clk 00:00:48]} {[%emt 00:00:17]} Kg6 {[%clk 00:01:22]} {[%emt 00:00:06]} 36.
Ra8 {[%clk 00:01:07]} {[%emt 00:00:12]} Kh7 {[%clk 00:01:14]} {[%emt 00:00:37]}
37. Ra7 {[%clk 00:00:49]} {[%emt 00:00:48]} Kg6 {[%clk 00:01:38]} {[%emt
00:00:05]} 38. Ra8 {[%clk 00:01:01]} {[%emt 00:00:20]} Kh7 {[%clk 00:02:04]}
{[%emt 00:00:03]} 39. Ra7 {[%clk 00:01:20]} {[%emt 00:00:12]} Kg6 {[%clk
00:02:28]} {[%emt 00:00:04]} 40. Ra8 {[%clk 00:01:31]} {[%emt 00:00:19]} Kh7
{[%clk 00:02:52]} {[%emt 00:00:06]} 1/2-1/2

[Event "Schack-SM 2024: Sverigemastarklassen"]
[Site "Fortnox Arena, Hejaregatan 5, Vaxjo, Sweden"]
[Date "2024.07.06"]
[Round "8.3"]
[White "Hillarp Persson, Tiger"]
[Black "Blomqvist, Erik"]
[Result "0-1"]
[TimeControl "90 minutes for 40 moves + 30 minutes for the rest of the game + 30 seconds per move from move one."]
[WhiteTitle "GM"]
[BlackTitle "GM"]
[WhiteElo "2455"]
[BlackElo "2527"]

1. d4 {[%clk 01:30:58]} {[%emt 00:00:02]} d5 {[%clk 01:30:52]} {[%emt
00:00:08]} 2. c4 {[%clk 01:31:10]} {[%emt 00:00:18]} c6 {[%clk 01:31:14]}
{[%emt 00:00:08]} 3. Nf3 {[%clk 01:31:34]} {[%emt 00:00:06]} Nf6 {[%clk
01:31:37]} {[%emt 00:00:07]} 4. e3 {[%clk 01:31:59]} {[%emt 00:00:05]} Bf5
{[%clk 01:31:55]} {[%emt 00:00:12]} 5. Nc3 {[%clk 01:32:20]} {[%emt 00:00:09]}
e6 {[%clk 01:32:17]} {[%emt 00:00:08]} 6. Nh4 {[%clk 01:32:44]} {[%emt
00:00:06]} Bg6 {[%clk 01:32:38]} {[%emt 00:00:09]} 7. Be2 {[%clk 01:33:03]}
{[%emt 00:00:10]} Nbd7 {[%clk 01:32:54]} {[%emt 00:00:14]} 8. O-O {[%clk
01:24:44]} {[%emt 00:08:50]} Be7 {[%clk 01:32:43]} {[%emt 00:00:41]} 9. g3
{[%clk 01:16:36]} {[%emt 00:08:38]} dxc4 {[%clk 01:32:32]} {[%emt 00:00:41]} 10.
Nxg6 {[%clk 01:16:58]} {[%emt 00:00:08]} hxg6 {[%clk 01:32:56]} {[%emt
00:00:06]} 11. Bxc4 {[%clk 01:17:21]} {[%emt 00:00:07]} Qa5 {[%clk 01:33:07]}
{[%emt 00:00:19]} 12. Qf3 {[%clk 01:00:49]} {[%emt 00:17:01]} Rd8 {[%clk
01:27:12]} {[%emt 00:06:25]} 13. Rd1 {[%clk 00:59:55]} {[%emt 00:01:23]} g5
{[%clk 01:16:45]} {[%emt 00:10:58]} 14. g4 {[%clk 00:53:17]} {[%emt 00:07:07]}
Nf8 {[%clk 00:32:15]} {[%emt 00:45:00]} 15. h3 {[%clk 00:25:28]} {[%emt
00:28:20]} Ng6 {[%clk 00:29:55]} {[%emt 00:02:51]} 16. Bd2 {[%clk 00:18:07]}
{[%emt 00:07:50]} Qc7 {[%clk 00:30:18]} {[%emt 00:00:06]} 17. Be1 {[%clk
00:15:17]} {[%emt 00:03:20]} e5 {[%clk 00:27:03]} {[%emt 00:03:47]} 18. Ne4
{[%clk 00:07:39]} {[%emt 00:08:08]} exd4 {[%clk 00:26:53]} {[%emt 00:00:39]} 19.
Nxg5 {[%clk 00:05:54]} {[%emt 00:02:14]} Ne5 {[%clk 00:26:16]} {[%emt
00:01:07]} 20. Qg3 {[%clk 00:05:14]} {[%emt 00:01:10]} Bd6 {[%clk 00:21:46]}
{[%emt 00:05:01]} 21. Bb3 {[%clk 00:05:35]} {[%emt 00:00:06]} Nexg4 {[%clk
00:21:32]} {[%emt 00:00:45]} 22. Qg2 {[%clk 00:05:45]} {[%emt 00:00:19]} dxe3
{[%clk 00:17:32]} {[%emt 00:04:31]} 23. hxg4 {[%clk 00:05:39]} {[%emt
00:00:36]} Bh2+ {[%clk 00:17:08]} {[%emt 00:00:55]} 24. Kf1 {[%clk 00:05:34]}
{[%emt 00:00:34]} e2+ {[%clk 00:17:28]} {[%emt 00:00:10]} 25. Kxe2 {[%clk
00:05:44]} {[%emt 00:00:18]} Qe5+ {[%clk 00:17:40]} {[%emt 00:00:19]} 26. Kf3
{[%clk 00:03:39]} {[%emt 00:02:36]} Qxg5 {[%clk 00:15:29]} {[%emt 00:02:41]} 27.
Rxd8+ {[%clk 00:00:49]} {[%emt 00:03:21]} Kxd8 {[%clk 00:15:57]} {[%emt
00:00:02]} 28. Rd1+ {[%clk 00:00:51]} {[%emt 00:00:27]} Kc8 {[%clk 00:13:40]}
{[%emt 00:02:46]} 29. Bc2 {[%clk 00:00:46]} {[%emt 00:00:37]} Qf4+ {[%clk
00:11:34]} {[%emt 00:02:35]} 30. Ke2 {[%clk 00:01:09]} {[%emt 00:00:08]} Re8+
{[%clk 00:10:56]} {[%emt 00:01:08]} 31. Kf1 {[%clk 00:01:31]} {[%emt 00:00:08]}
Nxg4 {[%clk 00:11:21]} {[%emt 00:00:06]} 32. Rd3 {[%clk 00:00:57]} {[%emt
00:01:04]} Ne3+ {[%clk 00:10:08]} {[%emt 00:01:42]} 33. Rxe3 {[%clk 00:01:20]}
{[%emt 00:00:08]} Rxe3 {[%clk 00:10:34]} {[%emt 00:00:04]} 34. Bb3 {[%clk
00:00:50]} {[%emt 00:00:59]} Re8 {[%clk 00:09:36]} {[%emt 00:01:29]} 35. Qxg7
{[%clk 00:00:38]} {[%emt 00:00:42]} Qf3 {[%clk 00:09:07]} {[%emt 00:00:59]} 0-1